bitfinex-derivatives/quotes_BTCF0:USTF0_20250716
["timestamp","ask_amount","ask_price","bid_price","bid_amount"]
[1752709426568,2.12138232,118920.0,118910.0,0.2023095]
[1752709426769,2.91783544,118920.0,118910.0,0.52570952]
[1752709427069,2.77755969,118920.0,118910.0,0.1474069]
[1752709427870,2.77855969,118920.0,118910.0,0.1474069]
[1752709430472,2.78714809,118920.0,118910.0,0.1474069]
[1752709431278,2.78714809,118920.0,118910.0,0.08703]
[1752709433067,2.20090809,118920.0,118910.0,0.08703]
[1752709433272,2.78698809,118920.0,118910.0,0.14735302]
[1752709438381,2.5068376,118920.0,118910.0,0.14735302]
[1752709438683,2.78698809,118920.0,118910.0,0.14735302]
[1752709438975,2.5068376,118920.0,118910.0,0.14735302]
[1752709439180,2.78698809,118920.0,118910.0,0.14735302]
[1752709441381,2.78698809,118920.0,118910.0,0.08703]
[1752709442280,2.78698809,118920.0,118910.0,0.14732446]
[1752709443277,2.78698809,118920.0,118910.0,0.08703]
[1752709444275,2.78678809,118920.0,118910.0,0.08703]
[1752709444882,2.20090809,118920.0,118910.0,0.2551201]
[1752709445084,2.78674809,118920.0,118910.0,0.2551201]
[1752709445785,2.78674809,118920.0,118910.0,0.31541433]
[1752709446879,2.4139685,118920.0,118910.0,0.31541433]
[1752709447084,2.62405823,118920.0,118910.0,0.52550406]
[1752709447584,2.83414796,118920.0,118910.0,0.52550406]
[1752709447780,2.83414796,118920.0,118910.0,0.31541433]
[1752709447978,2.83414796,118920.0,118910.0,0.52550406]
[1752709448178,2.33814796,118920.0,118910.0,0.52550406]
[1752709448787,2.33814796,118920.0,118910.0,0.35741396]
[1752709448976,2.33814796,118920.0,118910.0,0.14732423]
[1752709450587,1.9179685,118920.0,118910.0,0.31541433]
[1752709450789,2.34661549,118920.0,118910.0,0.31541433]
[1752709451193,2.34661549,118920.0,118910.0,0.2551201]
[1752709454495,2.34661549,118920.0,118910.0,0.08703]
[1752709454698,2.34661549,118920.0,118910.0,0.2551204]
[1752709456289,2.34661549,118920.0,118910.0,0.16254615]
[1752709456490,2.34661549,118920.0,118910.0,0.33063665]
[1752709456989,2.34661549,118920.0,118910.0,0.16254615]
[1752709457395,2.34661549,118920.0,118910.0,0.33063615]
[1752709457595,2.34661549,118920.0,118910.0,0.16254615]
[1752709457794,2.34661549,118920.0,118910.0,0.33063705]
[1752709458493,2.34661549,118920.0,118910.0,0.16254615]
[1752709460189,2.34661549,118920.0,118910.0,0.12362615]
[1752709460397,2.34633549,118920.0,118910.0,0.2209619]
[1752709460593,2.34633549,118920.0,118910.0,0.14394615]
[1752709460899,2.34633549,118920.0,118910.0,0.16286615]
[1752709462790,2.34633549,118920.0,118910.0,0.08735]
[1752709463196,1.76077549,118920.0,118910.0,0.14772411]
[1752709463391,1.18325549,118920.0,118910.0,0.08735]
[1752709463995,0.59773549,118920.0,118910.0,0.08735]
[1752709464191,1.18321549,118920.0,118910.0,0.08735]
[1752709464799,1.18321549,118920.0,118910.0,0.14772574]
[1752709465698,1.18321549,118920.0,118910.0,0.31582934]
[1752709465699,0.76303603,118920.0,118910.0,0.31582934]
[1752709465898,1.18321549,118920.0,118910.0,0.31582934]
[1752709466099,1.18321549,118920.0,118910.0,0.14772574]
[1752709466605,0.76303603,118920.0,118910.0,0.14772574]
[1752709466800,1.18321549,118920.0,118910.0,0.31582964]
[1752709467099,1.18321549,118920.0,118910.0,0.08735]
[1752709467796,0.1690898,118920.0,118910.0,0.46554373]
[1752709468204,0.1690898,118920.0,118910.0,0.54105988]
[1752709468205,1.17470926,118920.0,118910.0,0.54105988]
[1752709468897,1.17470926,118920.0,118910.0,0.16286615]
[1752709469402,1.17470926,118920.0,118910.0,0.33097045]
[1752709470005,1.17470926,118920.0,118910.0,0.16286615]
[1752709470204,1.17470926,118920.0,118910.0,0.08735]
[1752709472907,1.17470926,118920.0,118910.0,0.2554543]
[1752709473607,0.7545298,118920.0,118910.0,0.2554543]
[1752709473809,1.17470926,118920.0,118910.0,0.2554543]
[1752709474410,1.17470926,118920.0,118910.0,0.31580538]
[1752709475111,1.17470926,118920.0,118910.0,0.2554543]
[1752709475310,0.7545298,118920.0,118910.0,0.46554403]
[1752709475510,1.17470926,118920.0,118910.0,0.46554403]
[1752709475712,1.17470926,118920.0,118910.0,0.2554543]
[1752709475908,1.17470926,118920.0,118910.0,0.46554403]
[1752709477217,0.58926926,118920.0,118910.0,0.46554403]
[1752709477413,0.96449953,118920.0,118910.0,0.54106018]
[1752709477614,0.96449953,118920.0,118910.0,0.46554403]
[1752709477814,0.79636973,118920.0,118910.0,0.46554403]
[1752709478015,0.96445993,118920.0,118910.0,0.2554543]
[1752709478217,0.96445993,118920.0,118910.0,0.46554403]
[1752709478717,0.37917993,118920.0,118910.0,0.46554403]
[1752709478919,0.7543702,118920.0,118910.0,0.54097305]
[1752709479114,0.96445993,118920.0,118910.0,0.33088332]
[1752709479318,0.96445993,118920.0,118910.0,0.54097305]
[1752709479823,0.7543702,118920.0,118910.0,0.54097305]
[1752709480231,0.96445993,118920.0,118910.0,0.54097305]
[1752709481333,0.7543702,118920.0,118910.0,0.54097305]
[1752709481633,0.96445993,118920.0,118910.0,0.54097305]
[1752709484932,0.1690902,118920.0,118910.0,0.54097305]
[1752709485133,0.7542902,118920.0,118910.0,0.54097305]
[1752709485336,0.96433993,118920.0,118910.0,0.54097305]
[1752709486035,0.37917993,118920.0,118910.0,0.54097305]
[1752709486232,0.96433993,118920.0,118910.0,0.54097305]
[1752709486430,0.7542502,118920.0,118910.0,0.54097305]
[1752709486630,0.96433993,118920.0,118910.0,0.54097305]
[1752709487030,0.001,118920.0,118910.0,0.55946275]
[1752709487231,1.45716433,118940.0,118930.0,0.1705262]
[1752709487430,2.42048866,118940.0,118930.0,0.2542062]
[1752709487625,0.1680762,118930.0,118920.0,0.2990526]
[1752709487846,0.37816593,118930.0,118920.0,0.3646047]
[1752709488133,2.08434283,118940.0,118920.0,0.3985947]
[1752709488335,2.25241623,118940.0,118930.0,0.2380162]
[1752709488536,2.46550596,118940.0,118930.0,0.2380162]
[1752709489035,2.46250596,118940.0,118930.0,0.2380162]
[1752709489234,2.43174171,118940.0,118930.0,0.2380162]
[1752709489535,2.49926751,118940.0,118930.0,0.2380162]
[1752709489729,2.49922751,118940.0,118930.0,0.2380162]
[1752709490335,2.41518161,118940.0,118930.0,0.2542062]
[1752709490735,1.99500215,118940.0,118930.0,0.2542062]
[1752709490937,2.27510125,118940.0,118930.0,0.2542062]
[1752709491138,2.27510125,118940.0,118930.0,0.314541]
[1752709492233,2.27510125,118940.0,118930.0,0.33293501]
[1752709494640,2.266847,118940.0,118930.0,0.33293501]
[1752709495942,1.9867479,118940.0,118930.0,0.33293501]
[1752709496241,2.266847,118940.0,118930.0,0.33293501]
[1752709497041,1.103807,118940.0,118930.0,0.33293501]
[1752709500442,1.103807,118940.0,118930.0,0.33332154]
[1752709500841,1.103807,118940.0,118930.0,0.07911534]
[1752709501041,1.50923853,118940.0,118930.0,0.0593348]
[1752709501244,0.1680903,118920.0,118910.0,0.07542902]
[1752709501545,0.1681044,118910.0,118900.0,0.39043676]
[1752709501737,0.4482035,118910.0,118900.0,0.39043676]
[1752709501939,0.4482035,118910.0,118900.0,0.31500774]
[1752709502540,0.1681044,118910.0,118900.0,0.31500774]
[1752709503042,0.4482035,118910.0,118900.0,0.31500774]
[1752709503242,0.4482035,118910.0,118900.0,0.31600774]
[1752709503443,0.4482035,118910.0,118900.0,0.39144681]
[1752709503644,0.4482035,118910.0,118900.0,0.31600774]
[1752709504244,0.4482035,118910.0,118900.0,0.31572693]
[1752709507948,0.4482035,118910.0,118900.0,0.42151693]
[1752709511854,0.1681044,118910.0,118900.0,0.42151693]
[1752709512152,0.4482035,118910.0,118900.0,0.42151693]
[1752709512754,0.1681044,118910.0,118900.0,0.42151693]
[1752709513154,0.5322496,118920.0,118910.0,0.2157444]
[1752709513348,1.1171296,118920.0,118910.0,0.29572928]
[1752709514351,1.1170896,118920.0,118910.0,0.29572928]
[1752709514552,0.5322496,118920.0,118910.0,0.29572928]
[1752709514754,1.1171296,118920.0,118910.0,0.29572928]
[1752709515556,0.8370305,118920.0,118910.0,0.29572928]
[1752709515753,1.1171296,118920.0,118910.0,0.29572928]
[1752709516457,1.1170896,118920.0,118910.0,0.29572928]
[1752709516756,1.1170896,118920.0,118910.0,0.31148928]
[1752709520459,0.8369905,118920.0,118910.0,0.31148928]
[1752709520860,1.1170896,118920.0,118910.0,0.31148928]
[1752709521957,1.1170896,118920.0,118910.0,0.32751928]
[1752709522161,1.1170896,118920.0,118910.0,0.32990928]
[1752709524164,0.8369905,118920.0,118910.0,0.32990928]
[1752709524365,1.1170896,118920.0,118910.0,0.32990928]
[1752709525265,0.8369905,118920.0,118910.0,0.32990928]
[1752709525466,1.1170896,118920.0,118910.0,0.32990928]
[1752709530970,1.25725252,118920.0,118910.0,0.32990928]
[1752709531868,1.25725252,118920.0,118910.0,0.54004029]
[1752709534368,0.8369905,118920.0,118910.0,0.54004029]
[1752709534571,1.25725252,118920.0,118910.0,0.54004029]
[1752709535365,1.25725252,118920.0,118910.0,0.32990928]
[1752709535670,1.25725252,118920.0,118910.0,0.2544644]
[1752709536770,1.25725252,118920.0,118910.0,0.46459541]
[1752709536966,1.21522772,118920.0,118910.0,0.46459541]
[1752709539270,1.21522772,118920.0,118910.0,0.54004029]
[1752709540072,1.21522772,118920.0,118910.0,0.46459541]
[1752709540266,1.21522772,118920.0,118910.0,0.2544644]
[1752709540467,0.7949657,118920.0,118910.0,0.2544644]
[1752709540665,1.21522772,118920.0,118910.0,0.46459541]
[1752709541165,1.21522772,118920.0,118910.0,0.32993595]
[1752709546672,1.21522772,118920.0,118910.0,0.07547155]
[1752709546872,1.21522772,118920.0,118910.0,0.06038668]
[1752709548276,0.1681044,118910.0,118900.0,0.05108]
[1752709548477,0.58836642,118910.0,118900.0,0.2143286]
[1752709548778,0.58836642,118910.0,118900.0,0.04621]
[1752709549372,0.58836642,118910.0,118900.0,0.05108]
[1752709549779,0.58836642,118910.0,118900.0,0.12755725]
[1752709549979,0.59673762,118910.0,118900.0,0.12755725]
[1752709550277,0.59673762,118910.0,118900.0,0.29567585]
[1752709550478,0.38660661,118910.0,118900.0,0.29567585]
[1752709553576,0.38660661,118910.0,118900.0,0.05208]
[1752709555377,0.59673762,118910.0,118900.0,0.05208]
[1752709556579,0.59673762,118910.0,118900.0,0.11241987]
[1752709560184,0.38660661,118910.0,118900.0,0.11241987]
[1752709560384,0.1764756,118910.0,118900.0,0.28053847]
[1752709560686,0.38660661,118910.0,118900.0,0.31311847]
[1752709560882,0.97728661,118910.0,118900.0,0.31557847]
[1752709561487,0.97728661,118910.0,118900.0,0.2552386]
[1752709562487,0.97728661,118910.0,118900.0,0.46536961]
[1752709564085,0.7671556,118910.0,118900.0,0.46536961]
[1752709564292,0.97728661,118910.0,118900.0,0.46536961]
[1752709564782,0.97728661,118910.0,118900.0,0.54084686]
[1752709565387,0.38660661,118910.0,118900.0,0.54084686]
[1752709565584,0.97668661,118910.0,118900.0,0.54084686]
[1752709567596,0.1681044,118910.0,118900.0,0.75097787]
[1752709567898,0.2941761,118920.0,118910.0,0.2558744]
[1752709568190,0.8839361,118920.0,118910.0,0.53459692]
[1752709568794,1.09406711,118920.0,118910.0,0.3161952]
[1752709569002,0.8839361,118920.0,118910.0,0.3161952]
[1752709569292,0.8839361,118920.0,118910.0,0.5963142]
[1752709569701,0.8839361,118920.0,118910.0,0.3161952]
[1752709570498,0.8839361,118920.0,118910.0,0.2558744]
[1752709570799,0.8419105,118920.0,118910.0,0.5359934]
[1752709572096,0.8419105,118920.0,118910.0,0.61147065]
[1752709572399,0.8419105,118920.0,118910.0,0.61994038]
[1752709572800,0.8419105,118920.0,118910.0,0.61147065]
[1752709574201,0.8419105,118920.0,118910.0,0.33135165]
[1752709574501,1.1220295,118920.0,118910.0,0.33135165]
[1752709574703,1.1220295,118920.0,118910.0,0.2558744]
[1752709576299,1.0800039,118920.0,118910.0,0.2558744]
[1752709576902,1.0800039,118920.0,118910.0,0.08777]
[1752709577304,1.0800039,118920.0,118910.0,0.05273]
[1752709579401,1.0800039,118920.0,118910.0,0.06939]
[1752709580304,1.0800039,118920.0,118910.0,0.33135165]
[1752709581404,0.7998849,118920.0,118910.0,0.33135165]
[1752709581599,1.0800039,118920.0,118910.0,0.33135165]
[1752709582697,0.7998849,118920.0,118910.0,0.2558744]
[1752709584304,1.0800039,118920.0,118910.0,0.2558744]
[1752709584604,1.0785639,118920.0,118910.0,0.2558744]
[1752709585503,0.4902439,118920.0,118910.0,0.2558744]
[1752709585705,1.0783639,118920.0,118910.0,0.2558744]
[1752709585906,1.0783639,118920.0,118910.0,0.08777]
[1752709587807,0.4902439,118920.0,118910.0,0.08777]
[1752709588005,1.0782439,118920.0,118910.0,0.08777]
[1752709589407,0.4902439,118920.0,118910.0,0.08777]
[1752709589603,1.0780039,118920.0,118910.0,0.16324725]
[1752709590097,0.4902439,118920.0,118910.0,0.16324725]
[1752709590502,1.0778839,118920.0,118910.0,0.16324725]
[1752709590908,1.0778839,118920.0,118910.0,0.08777]
[1752709591409,0.4902439,118920.0,118910.0,0.08777]
[1752709591609,1.0776839,118920.0,118910.0,0.08777]
[1752709591809,1.0776839,118920.0,118910.0,0.22359747]
[1752709592010,1.0776839,118920.0,118910.0,0.14812022]
[1752709592205,0.4902439,118920.0,118910.0,0.14812022]
[1752709592610,1.0774839,118920.0,118910.0,0.14812022]
[1752709596810,1.0774839,118920.0,118910.0,0.31622462]
[1752709597014,1.0774839,118920.0,118910.0,0.2558744]
[1752709597911,1.0774839,118920.0,118910.0,0.08777]
[1752709598812,1.0774839,118920.0,118910.0,0.14815382]
[1752709599306,1.0774839,118920.0,118910.0,0.14815327]
[1752709600611,1.0774839,118920.0,118910.0,0.31625767]
[1752709600813,1.0774839,118920.0,118910.0,0.14815327]
[1752709601013,1.217631,118920.0,118910.0,0.14815327]
[1752709601814,1.217631,118920.0,118910.0,0.08777]
[1752709605110,1.217631,118920.0,118910.0,0.2558742]
[1752709606521,0.7973649,118920.0,118910.0,0.2558742]
[1752709606724,0.7973649,118920.0,118910.0,0.46600725]
[1752709606922,1.217631,118920.0,118910.0,0.46600725]
[1752709607722,1.00749795,118920.0,118910.0,0.5414845]
[1752709609324,1.217631,118920.0,118910.0,0.5414845]
[1752709610724,1.00749795,118920.0,118910.0,0.5414845]
[1752709613027,1.217631,118920.0,118910.0,0.5414845]
[1752709613824,1.217631,118920.0,118910.0,0.33135145]
[1752709614427,1.217631,118920.0,118910.0,0.5414845]
[1752709616027,0.7973649,118920.0,118910.0,0.5414845]
[1752709616226,1.217631,118920.0,118910.0,0.5414845]
[1752709618731,0.7973649,118920.0,118910.0,0.5414845]
[1752709618931,1.217631,118920.0,118910.0,0.5414845]
[1752709619731,1.217631,118920.0,118910.0,0.33135145]
[1752709619931,1.217631,118920.0,118910.0,0.5414845]
[1752709620126,1.217631,118920.0,118910.0,0.33135145]
[1752709620326,1.217631,118920.0,118910.0,0.14732725]
[1752709620532,1.217631,118920.0,118910.0,0.14486725]
[1752709621335,1.217631,118920.0,118910.0,0.16125725]
[1752709621631,1.217631,118920.0,118910.0,0.16353725]
[1752709623834,1.217631,118920.0,118910.0,0.33164145]
[1752709624327,1.217631,118920.0,118910.0,0.16353725]
[1752709626536,0.630391,118920.0,118910.0,0.16353725]
[1752709627332,1.216471,118920.0,118910.0,0.16353725]
[1752709628035,0.630391,118920.0,118910.0,0.16353725]
[1752709628435,1.216471,118920.0,118910.0,0.16353725]
[1752709629237,0.630391,118920.0,118910.0,0.16353725]
[1752709629537,0.7962049,118920.0,118910.0,0.16353725]
[1752709629736,1.216471,118920.0,118910.0,0.5417745]
[1752709630737,0.7962049,118920.0,118910.0,0.5417745]
[1752709630933,0.630391,118920.0,118910.0,0.5417745]
[1752709631234,1.216471,118920.0,118910.0,0.5417745]
[1752709631742,1.216471,118920.0,118910.0,0.46629725]
[1752709632533,1.216471,118920.0,118910.0,0.29819305]
[1752709633138,1.216471,118920.0,118910.0,0.46629725]
[1752709635535,1.216471,118920.0,118910.0,0.48480521]
[1752709636036,1.216471,118920.0,118910.0,0.10656796]
[1752709636237,0.1681042,118910.0,118900.0,0.05078]
[1752709636441,0.5883703,118910.0,118900.0,0.07547725]
[1752709636741,0.1681183,118900.0,118890.0,0.5806446]
[1752709636941,0.37825135,118900.0,118890.0,0.5386118]
[1752709637350,0.5883844,118900.0,118890.0,0.5386118]
[1752709637551,0.5883844,118900.0,118890.0,0.46313455]
[1752709638050,0.5883844,118900.0,118890.0,0.46513455]
[1752709638849,0.59680707,118900.0,118890.0,0.2550015]
[1752709639448,0.59680707,118900.0,118890.0,0.46513455]
[1752709640050,0.59680707,118900.0,118890.0,0.2550015]
[1752709641253,0.59680707,118900.0,118890.0,0.08687]
[1752709641649,0.59680707,118900.0,118890.0,0.2550025]
[1752709642454,0.59680707,118900.0,118890.0,0.08687]
[1752709642753,0.59680707,118900.0,118890.0,0.2550024]
[1752709642954,0.59680707,118900.0,118890.0,0.33047965]
[1752709643555,0.59680707,118900.0,118890.0,0.16234725]
[1752709643756,0.59680707,118900.0,118890.0,0.33047965]
[1752709644155,0.59680707,118900.0,118890.0,0.2550024]
[1752709645159,0.17654097,118900.0,118890.0,0.2550024]
[1752709645456,0.59680707,118900.0,118890.0,0.2550024]
[1752709645651,0.17654097,118900.0,118890.0,0.2550024]
[1752709645852,0.59680707,118900.0,118890.0,0.2550024]
[1752709647858,0.59680707,118900.0,118890.0,0.33047965]
[1752709649756,0.59680707,118900.0,118890.0,0.2550024]
[1752709650261,0.17654097,118900.0,118890.0,0.46513545]
[1752709650461,0.59680707,118900.0,118890.0,0.46513545]
[1752709651660,0.59680707,118900.0,118890.0,0.2550024]
[1752709651860,0.59680707,118900.0,118890.0,0.46513545]
[1752709653661,0.17654097,118900.0,118890.0,0.46513545]
[1752709653960,0.59680707,118900.0,118890.0,0.46513545]
[1752709656262,0.17654097,118900.0,118890.0,0.46513545]
[1752709656461,0.59680707,118900.0,118890.0,0.46513545]
[1752709656659,0.80694012,118900.0,118890.0,0.12825725]
[1752709656863,0.80694012,118900.0,118890.0,0.06232279]
[1752709657058,1.10071397,118900.0,118890.0,0.06233291]
[1752709657364,1.10071397,118900.0,118890.0,0.04725197]
[1752709659253,1.10071397,118900.0,118890.0,0.04625197]
[1752709660063,1.10071397,118900.0,118890.0,0.07640307]
[1752709660253,1.10071397,118900.0,118890.0,0.0311511]
[1752709660968,0.7507156,118900.0,118890.0,0.0311511]
[1752709663468,0.5824996,118900.0,118890.0,0.0311511]
[1752709663764,0.7507156,118900.0,118890.0,0.0311511]
[1752709666670,0.5824996,118900.0,118890.0,0.0311511]
[1752709682182,0.5824996,118900.0,118890.0,0.001]
[1752709682985,0.93298316,118900.0,118890.0,0.001]
[1752709684185,0.93298316,118900.0,118890.0,0.04625197]
[1752709687184,0.93298316,118900.0,118890.0,0.001]
[1752709687877,0.93298316,118900.0,118890.0,0.04633141]
[1752709688082,0.93298316,118900.0,118890.0,0.09398141]
[1752709688386,0.93298316,118900.0,118890.0,0.04865]
[1752709689586,0.93298316,118900.0,118890.0,0.001]
[1752709690586,0.93298316,118900.0,118890.0,0.04865]
[1752709690781,0.30209882,118900.0,118890.0,0.05356]
[1752709690983,1.30840838,118900.0,118890.0,0.08756]
[1752709691687,0.88781882,118900.0,118890.0,0.08756]
[1752709691987,1.30840838,118900.0,118890.0,0.14789291]
[1752709695987,0.30209882,118900.0,118890.0,0.14789291]
[1752709696190,1.18281053,118900.0,118890.0,0.29785478]
[1752709696389,1.18281053,118900.0,118890.0,0.08756]
[1752709698189,1.18281053,118900.0,118890.0,0.2556923]
[1752709698389,1.18281053,118900.0,118890.0,0.08756]
[1752709699282,0.76222097,118900.0,118890.0,0.08756]
[1752709699480,1.18281053,118900.0,118890.0,0.14789291]
[1752709710702,1.18281053,118900.0,118890.0,0.31602521]
[1752709711597,1.18281053,118900.0,118890.0,0.14789291]
[1752709714904,1.18281053,118900.0,118890.0,0.31602521]
[1752709718502,0.76222097,118900.0,118890.0,0.31602521]
[1752709718705,1.18281053,118900.0,118890.0,0.31602521]
[1752709721502,1.18281053,118900.0,118890.0,0.2556923]
[1752709723406,1.18281053,118900.0,118890.0,0.33116955]
[1752709727908,1.18281053,118900.0,118890.0,0.2556923]
[1752709729409,1.18281053,118900.0,118890.0,0.08756]
[1752709735217,1.18281053,118900.0,118890.0,0.16303725]
[1752709735914,1.18281053,118900.0,118890.0,0.12903725]
[1752709736619,0.76222097,118900.0,118890.0,0.05356]
[1752709736820,1.18281053,118900.0,118890.0,0.08794]
[1752709742722,0.76222097,118900.0,118890.0,0.08794]
[1752709743023,1.18281053,118900.0,118890.0,0.08794]
[1752709746132,1.18281053,118900.0,118890.0,0.0715]
[1752709746423,1.18281053,118900.0,118890.0,0.06924]
[1752709747426,1.18281053,118900.0,118890.0,0.05356]
[1752709758231,1.18281053,118900.0,118890.0,0.08794]
[1752709758531,0.76222097,118900.0,118890.0,0.08794]
[1752709758732,1.18281053,118900.0,118890.0,0.08794]
[1752709760134,1.18281053,118900.0,118890.0,0.2560723]
[1752709760534,1.18281053,118900.0,118890.0,0.08794]
[1752709762334,1.18281053,118900.0,118890.0,0.16341725]
[1752709775645,1.18281053,118900.0,118890.0,0.08794]
[1752709776742,1.18281053,118900.0,118890.0,0.06924]
[1752709776945,1.18281053,118900.0,118890.0,0.05356]
[1752709776946,0.76222097,118900.0,118890.0,0.05356]
[1752709777147,1.18281053,118900.0,118890.0,0.05356]
[1752709777346,1.18281053,118900.0,118890.0,0.12903725]
[1752709781148,1.18281053,118900.0,118890.0,0.05356]
[1752709785052,1.39310531,118900.0,118890.0,0.001]
[1752709786153,1.51968532,118900.0,118890.0,0.06133887]
[1752709786555,1.53676928,118900.0,118890.0,0.06133887]
[1752709797259,0.1681323,118890.0,118880.0,0.01945827]
[1752709797559,0.92547714,118890.0,118880.0,0.01945827]
[1752709797767,0.1681464,118880.0,118870.0,0.05092]
[1752709797965,1.38391074,118880.0,118870.0,0.05092]
[1752709798262,1.17361596,118880.0,118870.0,0.05092]
[1752709799067,1.24094732,118880.0,118870.0,0.05492]
[1752709800663,0.82035776,118880.0,118870.0,0.08911]
[1752709801061,1.24094732,118880.0,118870.0,0.08911]
[1752709803075,1.24094732,118880.0,118870.0,0.0703]
[1752709804273,1.24094732,118880.0,118860.0,0.01884253]
[1752709804274,2.04019742,118880.0,118860.0,0.04788]
[1752709804574,0.1681747,118860.0,118850.0,0.05283]
[1752709804765,1.38453904,118860.0,118850.0,0.00495]
[1752709804971,0.168203,118840.0,118830.0,0.2679874]
[1752709805169,1.17423256,118840.0,118830.0,0.2679874]
[1752709805473,1.17423256,118840.0,118830.0,0.2738138]
[1752709805666,1.17423256,118840.0,118830.0,0.1056076]
[1752709805871,1.17455256,118840.0,118830.0,0.08702]
[1752709806566,1.40998391,118840.0,118830.0,0.08702]
[1752709806774,0.2473669,118830.0,118820.0,0.0235405]
[1752709807072,0.66795646,118830.0,118820.0,0.0235405]
[1752709807269,0.66795646,118830.0,118820.0,0.0185905]
[1752709807477,0.66795646,118830.0,118820.0,0.09385339]
[1752709807675,0.66795646,118830.0,118820.0,0.0788178]
[1752709808074,0.66795646,118830.0,118820.0,0.0185905]
[1752709808274,0.66795646,118830.0,118820.0,0.06371351]
[1752709808777,0.67095646,118830.0,118820.0,0.06371351]
[1752709808976,0.2503669,118830.0,118820.0,0.06371351]
[1752709809176,0.53105485,118830.0,118820.0,0.06866351]
[1752709811480,0.53105485,118830.0,118820.0,0.09869772]
[1752709812480,0.53105485,118830.0,118820.0,0.05357471]
[1752709812675,0.53105485,118830.0,118820.0,0.04862471]
[1752709812978,0.53105485,118830.0,118820.0,0.03003421]
[1752709817476,0.200061,118820.0,118810.0,0.16217722]
[1752709817678,1.11426895,118820.0,118810.0,0.16217722]
[1752709820783,1.11426895,118820.0,118810.0,0.11705421]
[1752709821673,1.18238535,118820.0,118810.0,0.11705421]
[1752709822185,1.18238535,118820.0,118810.0,0.16217722]
[1752709823179,0.59618535,118820.0,118810.0,0.16217722]
[1752709823380,0.2363474,118820.0,118810.0,0.61111037]
[1752709823586,0.8216274,118820.0,118810.0,0.58107616]
[1752709824085,0.8216274,118820.0,118810.0,0.53595315]
[1752709824987,0.8216274,118820.0,118810.0,0.58094113]
[1752709825187,0.8216274,118820.0,118810.0,0.2552652]
[1752709825581,0.2363474,118820.0,118810.0,0.2552652]
[1752709825784,0.8217874,118820.0,118810.0,0.2552652]
[1752709825988,0.8215874,118820.0,118810.0,0.95428115]
[1752709826183,0.8215874,118820.0,118810.0,0.76450845]
[1752709830088,0.8215874,118820.0,118810.0,0.4838205]
[1752709830392,0.8215874,118820.0,118810.0,0.76450845]
[1752709831689,0.8215874,118820.0,118810.0,0.70428115]
[1752709831888,0.8215874,118820.0,118810.0,0.77954404]
[1752709833492,0.8215874,118820.0,118810.0,0.77952259]
[1752709834395,0.8215874,118820.0,118810.0,0.70428115]
[1752709834590,0.8215874,118820.0,118810.0,0.77957826]
[1752709835094,1.18029535,118820.0,118810.0,0.33056231]
[1752709835293,1.18029535,118820.0,118810.0,0.16231711]
[1752709835494,1.18029535,118820.0,118810.0,0.2552651]
[1752709837496,1.18029535,118820.0,118810.0,0.33056221]
[1752709840900,1.18029535,118820.0,118810.0,0.27204221]
[1752709841101,1.18029535,118820.0,118810.0,0.24849221]
[1752709841296,1.18029535,118820.0,118810.0,0.08024711]
[1752709841498,1.18029535,118820.0,118810.0,0.29556241]
[1752709843103,1.18029535,118820.0,118810.0,0.12731711]
[1752709843403,1.18029535,118820.0,118810.0,0.29556241]
[1752709843903,1.18029535,118820.0,118810.0,0.12731711]
[1752709844105,1.18029535,118820.0,118810.0,0.05202]
[1752709844999,0.2226153,118810.0,118800.0,0.33317435]
[1752709845198,0.2226153,118810.0,118800.0,0.35605435]
[1752709845199,0.52695325,118810.0,118800.0,0.35605435]
[1752709845400,0.52695325,118810.0,118800.0,0.28075724]
[1752709845605,0.52695325,118810.0,118800.0,0.31460724]
[1752709846901,0.52695325,118810.0,118800.0,0.31560724]
[1752709847697,0.52695325,118810.0,118800.0,0.08930654]
[1752709847903,0.52695325,118810.0,118800.0,0.16476986]
[1752709848103,0.2462653,118810.0,118800.0,0.08930654]
[1752709848304,0.52695325,118810.0,118800.0,0.08930654]
[1752709848905,0.52695325,118810.0,118800.0,0.16476986]
[1752709850005,0.52695325,118810.0,118800.0,0.14690986]
[1752709851509,0.65257368,118810.0,118800.0,0.08137332]
[1752709851809,0.65257368,118810.0,118800.0,0.001]
[1752709854811,0.65257368,118810.0,118800.0,0.06135589]
[1752709855005,1.42926163,118810.0,118800.0,0.01347589]
[1752709855406,0.1682735,118790.0,118780.0,0.14166834]
[1752709855612,1.03408145,118790.0,118780.0,0.06620502]
[1752709856109,1.03408145,118790.0,118780.0,0.14166834]
[1752709856501,1.03408145,118790.0,118780.0,0.06620502]
[1752709856812,1.04243589,118790.0,118780.0,0.06620502]
[1752709857114,1.04243589,118790.0,118780.0,0.06720502]
[1752709857514,1.04243589,118790.0,118780.0,0.01979502]
[1752709859114,0.76174794,118790.0,118780.0,0.01979502]
[1752709859319,1.04243589,118790.0,118780.0,0.01979502]
[1752709861319,1.04243589,118790.0,118780.0,0.001]
[1752709862317,1.04243589,118790.0,118780.0,0.04620829]
[1752709862820,1.04243589,118790.0,118780.0,0.04841]
[1752709863009,1.04243589,118790.0,118780.0,0.05324]
[1752709863211,1.04443589,118790.0,118780.0,0.05224]
[1752709864017,1.04443589,118790.0,118780.0,0.04741]
[1752709864214,0.1682876,118780.0,118770.0,0.08547]
[1752709864418,0.44897555,118780.0,118770.0,0.08547]
[1752709864917,0.44897555,118780.0,118770.0,0.05224]
[1752709865118,0.44897555,118780.0,118770.0,0.11251009]
[1752709865321,0.44897555,118780.0,118770.0,0.10768009]
[1752709865919,0.44897555,118780.0,118770.0,0.11251009]
[1752709867614,0.44897555,118780.0,118770.0,0.12916009]
[1752709867818,0.44897555,118780.0,118770.0,0.14801009]
[1752709868821,1.03409555,118780.0,118770.0,0.14801009]
[1752709872225,0.44897555,118780.0,118770.0,0.31631189]
[1752709872526,0.7534076,118780.0,118770.0,0.59699984]
[1752709873518,0.7534076,118780.0,118770.0,0.42869804]
[1752709873822,0.7534076,118780.0,118770.0,0.14801009]
[1752709875023,0.7534076,118780.0,118770.0,0.31631189]
[1752709875324,0.7534076,118780.0,118770.0,0.2560418]
[1752709876924,0.7534076,118780.0,118770.0,0.53672975]
[1752709877125,0.1682876,118780.0,118770.0,0.70511375]
[1752709877718,0.1682876,118780.0,118770.0,0.95511375]
[1752709878223,0.1682876,118780.0,118770.0,0.70511375]
[1752709878422,0.1682876,118780.0,118770.0,0.78057707]
[1752709879619,0.1682876,118780.0,118770.0,0.70511375]
[1752709879819,0.1682876,118780.0,118770.0,0.43298424]
[1752709880017,1.03401555,118780.0,118770.0,0.08774]
[1752709880222,1.03401555,118780.0,118770.0,0.06041916]
[1752709880516,0.1851716,118770.0,118760.0,0.2560562]
[1752709880717,0.46585955,118770.0,118760.0,0.2560562]
[1752709881024,0.1851716,118770.0,118760.0,0.2560562]
[1752709881224,0.7702116,118770.0,118760.0,0.2560562]
[1752709881630,0.7702116,118770.0,118760.0,0.33154726]
[1752709882126,0.7701716,118770.0,118760.0,0.33154726]
[1752709882328,0.1851716,118770.0,118760.0,0.61223521]